fUST/lending_fUST_20250113
["ID","MTS","AMOUNT","RATE_DAILY","PERIOD"]
[348707572,1736736648157,-503.60819529,0.00019178,2]
[348707573,1736736648167,-160.11630493,0.00019178,2]
[348707574,1736736648176,-500.0,0.00019178,2]
[348707575,1736736648186,-3414.79,0.00019178,2]
[348707576,1736736648196,-500.0,0.00019178,2]
[348707577,1736736648206,-504.84223433,0.00019178,2]
[348707578,1736736648218,-500.0,0.00019178,2]
[348707579,1736736648228,-506.52311244,0.00019178,2]
[348707580,1736736648238,-500.0,0.00019178,2]
[348707581,1736736648248,-500.0,0.00019178,2]
[348707582,1736736648257,-503.3351234,0.00019178,2]
[348707583,1736736648267,-500.0,0.00019178,2]
[348707584,1736736648276,-500.82772361,0.00019178,2]
[348707585,1736736648285,-507.79532604,0.00019178,2]
[348707586,1736736648295,-500.0,0.00019178,2]
[348707587,1736736648304,-502.15229122,0.00019178,2]
[348707588,1736736648314,-500.0,0.00019178,2]
[348707589,1736736648323,-500.0,0.00019178,2]
[348707590,1736736648333,-500.0,0.00019178,2]
[348707591,1736736648342,-500.0,0.00019178,2]
[348707592,1736736648351,-500.0,0.00019178,2]
[348707593,1736736648360,-500.0,0.00019178,2]
[348707594,1736736648369,-500.0,0.00019178,2]
[348707595,1736736648379,-500.0,0.00019178,2]
[348707596,1736736648389,-504.2905314,0.00019178,2]
[348707597,1736736648399,-500.0,0.00019178,2]
[348707598,1736736648409,-500.0,0.00019178,2]
[348707599,1736736648419,-500.0,0.00019178,2]
[348707600,1736736648433,-503.30013904,0.00019178,2]
[348707601,1736736648443,-1008.52253574,0.00019178,2]
[348707602,1736736648453,-500.0,0.00019178,2]
[348707603,1736736648462,-500.0,0.00019178,2]
[348707604,1736736648474,-500.0,0.00019178,2]
[348707605,1736736648484,-500.0,0.00019178,2]
[348707606,1736736648493,-500.0,0.00019178,2]
[348707607,1736736648502,-500.0,0.00019178,2]
[348707608,1736736648512,-500.0,0.00019178,2]
[348707609,1736736648521,-500.0,0.00019178,2]
[348707610,1736736648531,-503.50895141,0.00019178,2]
[348707611,1736736648540,-500.0,0.00019178,2]
[348707612,1736736648549,-503.50355439,0.00019178,2]
[348707613,1736736648559,-500.0,0.00019178,2]
[348707614,1736736648568,-502.4763801,0.00019178,2]
[348707615,1736736648577,-500.0,0.00019178,2]
[348707616,1736736648586,-500.0,0.00019178,2]
[348707617,1736736648596,-503.02658365,0.00019178,2]
[348707618,1736736648605,-500.0,0.00019178,2]
[348707619,1736736648614,-500.0,0.00019178,2]
[348707620,1736736648623,-500.0,0.00019178,2]
[348707621,1736736648633,-500.0,0.00019178,2]
[348707622,1736736648642,-518.17963813,0.00019178,2]
[348707623,1736736648651,-505.5755681,0.00019178,2]
[348707624,1736736648660,-500.0,0.00019178,2]
[348707625,1736736648670,-507.29121298,0.00019178,2]
[348707626,1736736648679,-500.0,0.00019178,2]
[348707627,1736736648688,-500.0,0.00019178,2]
[348707628,1736736648698,-500.0,0.00019178,2]
[348707629,1736736648708,-500.0,0.00019178,2]
[348707630,1736736648717,-500.0,0.00019178,2]
[348707631,1736736648728,-500.0,0.00019178,2]
[348707632,1736736648737,-500.0,0.00019178,2]
[348707633,1736736648747,-500.0,0.00019178,2]
[348707634,1736736648757,-500.0,0.00019178,2]
[348707635,1736736648767,-500.0,0.00019178,2]
[348707636,1736736648777,-500.0,0.00019178,2]
[348707637,1736736648786,-500.0,0.00019178,2]
[348707638,1736736648797,-500.0,0.00019178,2]
[348707639,1736736648807,-500.0,0.00019178,2]
[348707640,1736736648817,-500.0,0.00019178,2]
[348707641,1736736648826,-600.0597735,0.00019178,2]
[348707642,1736736648837,-500.0,0.00019178,2]
[348707643,1736736648846,-500.0,0.00019178,2]
[348707644,1736736648856,-500.0,0.00019178,2]
[348707645,1736736648865,-231.64329601,0.00019178,2]
[348707646,1736736648875,-503.78634129,0.00019178,2]
[348707647,1736736648884,-500.0,0.00019178,2]
[348707648,1736736648893,-500.0,0.00019178,2]
[348707649,1736736648903,-504.07274741,0.00019178,2]
[348707650,1736736648912,-365.37297108,0.00019178,2]
[348707651,1736736648923,-505.07776891,0.00019178,2]
[348707652,1736736648932,-500.0,0.00019178,2]
[348707653,1736736648942,-500.0,0.00019178,2]
[348707654,1736736648951,-502.83658517,0.00019178,2]
[348707655,1736736648960,-500.0,0.00019178,2]
[348707656,1736736648972,-500.0,0.00019178,2]
[348707657,1736736648981,-500.0,0.00019178,2]
[348707658,1736736648991,-500.0,0.00019178,2]
[348707659,1736736649001,-595.22470356,0.00019178,2]
[348707660,1736736649010,-500.0,0.00019178,2]
[348707661,1736736649020,-512.6275225,0.00019178,2]
[348707662,1736736649030,-500.0,0.00019178,2]
[348707663,1736736649039,-500.0,0.00019178,2]
[348707664,1736736649049,-616.18613848,0.00019178,2]
[348707665,1736736649059,-513.88174325,0.00019178,2]
[348707666,1736736649069,-500.0,0.00019178,2]
[348707667,1736736649078,-500.0,0.00019178,2]
[348707668,1736736649088,-500.0,0.00019178,2]
[348707669,1736736649097,-503.75098444,0.00019178,2]
[348707670,1736736649106,-502.98354201,0.00019178,2]
[348707671,1736736649116,-502.39107553,0.00019178,2]
[348707672,1736736649126,-549.8122535,0.00019178,2]
[348707673,1736736649135,-500.0,0.00019178,2]
[348707674,1736736649145,-505.75693162,0.00019178,2]
[348707675,1736736649154,-502.22474484,0.00019178,2]
[348707676,1736736649163,-500.0,0.00019178,2]
[348707677,1736736649172,-508.41894034,0.00019178,2]
[348707678,1736736649182,-500.0,0.00019178,2]
[348707679,1736736649192,-500.0,0.00019178,2]
[348707680,1736736649201,-500.0,0.00019178,2]
[348707681,1736736649210,-500.0,0.00019178,2]
[348707682,1736736649222,-500.0,0.00019178,2]
[348707683,1736736649232,-500.0,0.00019178,2]
[348707684,1736736649242,-500.0,0.00019178,2]
[348707685,1736736649252,-502.97563475,0.00019178,2]
[348707686,1736736649261,-500.0,0.00019178,2]
[348707687,1736736649271,-500.0,0.00019178,2]
[348707688,1736736649363,-500.0,0.00019178,2]
[348707689,1736736649372,-500.0,0.00019178,2]
[348707690,1736736649383,-500.0,0.00019178,2]
[348707691,1736736649392,-500.0,0.00019178,2]
[348707692,1736736649401,-500.0,0.00019178,2]
[348707693,1736736649411,-500.0,0.00019178,2]
[348707694,1736736649420,-411.01072978,0.00019178,2]
[348707695,1736736649430,-500.0,0.00019178,2]
[348707696,1736736649442,-504.45294358,0.00019178,2]
[348707697,1736736649452,-500.0,0.00019178,2]
[348707698,1736736649463,-503.07124084,0.00019178,2]
[348707699,1736736649478,-500.0,0.00019178,2]
[348707700,1736736649489,-500.0,0.00019178,2]
[348707701,1736736649499,-501.53931776,0.00019178,2]
[348707702,1736736649511,-500.0,0.00019178,2]
[348707703,1736736649522,-511.23146045,0.00019178,2]
[348707704,1736736649533,-3447.04,0.00019178,2]
[348707705,1736736649543,-504.24429487,0.00019178,2]
[348707706,1736736649553,-502.98673975,0.00019178,2]
[348707707,1736736649563,-502.96144101,0.00019178,2]
[348707708,1736736649573,-500.0,0.00019178,2]
[348707709,1736736649583,-500.0,0.00019178,2]
[348707710,1736736649592,-501.77222991,0.00019178,2]
[348707711,1736736649601,-504.50261972,0.00019178,2]
[348707712,1736736649611,-500.0,0.00019178,2]
[348707713,1736736649620,-16944.79,0.00019178,2]
[348707714,1736736649630,-500.0,0.00019178,2]
[348707715,1736736649639,-500.0,0.00019178,2]
[348707716,1736736649649,-502.48027274,0.00019178,2]
[348707717,1736736649658,-505.14268,0.00019178,2]
[348707718,1736736649667,-504.25921467,0.00019178,2]
[348707719,1736736649676,-500.00277067,0.00019178,2]
[348707720,1736736649686,-500.0,0.00019178,2]
[348707721,1736736649695,-500.0,0.00019178,2]
[348707722,1736736649705,-500.0,0.00019178,2]
[348707723,1736736649714,-502.79542816,0.00019178,2]
[348707724,1736736649727,-817.47,0.00019178,2]
[348707725,1736736649736,-500.0,0.00019178,2]
[348707726,1736736649746,-500.26325349,0.00019178,2]
[348707727,1736736649755,-500.0,0.00019178,2]
[348707728,1736736649765,-200.0,0.00019178,2]
[348707729,1736736649775,-503.53219126,0.00019178,2]
[348707730,1736736649785,-500.0,0.00019178,2]
[348707731,1736736649794,-500.0,0.00019178,2]
[348707732,1736736649804,-502.41859223,0.00019178,2]
[348707733,1736736649813,-500.0,0.00019178,2]
[348707734,1736736649823,-504.31656034,0.00019178,2]
[348707735,1736736649832,-502.60764977,0.00019178,2]
[348707736,1736736649843,-500.0,0.00019178,2]
[348707737,1736736649852,-502.64955454,0.00019178,2]
[348707738,1736736649861,-500.0,0.00019178,2]
[348707739,1736736649871,-500.0,0.00019178,2]
[348707740,1736736649882,-505.59117592,0.00019178,2]
[348707741,1736736649891,-2255.31,0.00019178,2]
[348707742,1736736649901,-501.36207065,0.00019178,2]
[348707743,1736736649911,-500.0,0.00019178,2]
[348707744,1736736649920,-500.0,0.00019178,2]
[348707745,1736736649930,-769.21,0.00019178,2]
[348707746,1736736649939,-155.71806365,0.00019178,2]
[348707747,1736736649948,-500.0,0.00019178,2]
[348707748,1736736649957,-500.0,0.00019178,2]
[348707749,1736736649970,-500.0,0.00019178,2]
[348707750,1736736649979,-501.10092581,0.00019178,2]
[348707751,1736736649988,-500.66764576,0.00019178,2]
[348707752,1736736649998,-608.64454488,0.00019178,2]
[348707753,1736736650007,-501.18939323,0.00019178,2]
[348707754,1736736650017,-500.0,0.00019178,2]
[348707755,1736736650026,-501.09775848,0.00019178,2]
[348707756,1736736650036,-500.0,0.00019178,2]
[348707757,1736736650046,-500.0,0.00019178,2]
[348707758,1736736650055,-500.0,0.00019178,2]
[348707759,1736736650065,-687.32,0.00019178,2]
[348707760,1736736650073,-500.0,0.00019178,2]
[348707761,1736736650083,-206.42893284,0.00019178,2]
[348707762,1736736650092,-501.53615506,0.00019178,2]
[348707763,1736736650101,-501.12933748,0.00019178,2]
[348707764,1736736650111,-500.0,0.00019178,2]
[348707765,1736736650119,-505.54320982,0.00019178,2]
[348707766,1736736650129,-500.0,0.00019178,2]
[348707767,1736736650139,-500.0,0.00019178,2]
[348707768,1736736650148,-500.0,0.00019178,2]
[348707769,1736736650158,-500.0,0.00019178,2]
[348707770,1736736650167,-500.0,0.00019178,2]
[348707771,1736736650177,-500.0,0.00019178,2]
[348707772,1736736650186,-500.0,0.00019178,2]
[348707773,1736736650195,-500.0,0.00019178,2]
[348707774,1736736650205,-500.0,0.00019178,2]
[348707775,1736736650215,-506.47425527,0.00019178,2]
[348707776,1736736650227,-507.51091861,0.00019178,2]
[348707777,1736736650237,-500.0,0.00019178,2]
[348707778,1736736650247,-500.0,0.00019178,2]
[348707779,1736736650256,-500.0,0.00019178,2]
[348707780,1736736650266,-503.18882488,0.00019178,2]
[348707781,1736736650276,-500.0,0.00019178,2]
[348707782,1736736650286,-502.6196729,0.00019178,2]
[348707783,1736736650295,-2620.39,0.00019178,2]
[348707784,1736736650305,-502.77350645,0.00019178,2]
[348707785,1736736650315,-500.0,0.00019178,2]
[348707786,1736736650324,-524.33,0.00019178,2]
[348707787,1736736650334,-500.0,0.00019178,2]
[348707788,1736736650343,-500.0,0.00019178,2]
[348707789,1736736650352,-500.0,0.00019178,2]
[348707790,1736736650362,-507.63253765,0.00019178,2]
[348707791,1736736650371,-500.0,0.00019178,2]
[348707792,1736736650380,-503.13394865,0.00019178,2]
[348707793,1736736650389,-500.0,0.00019178,2]
[348707794,1736736650398,-500.0,0.00019178,2]
[348707795,1736736650407,-500.0,0.00019178,2]
[348707796,1736736650417,-500.0,0.00019178,2]
[348707797,1736736650431,-500.0,0.00019178,2]
[348707798,1736736650440,-502.84758693,0.00019178,2]
[348707799,1736736650449,-500.0,0.00019178,2]
[348707800,1736736650458,-214.32286009,0.00019178,2]
[348707801,1736736650472,-500.0,0.00019178,2]
[348707802,1736736650481,-502.26662161,0.00019178,2]
[348707803,1736736650491,-500.0,0.00019178,2]
[348707804,1736736650501,-500.0,0.00019178,2]
[348707805,1736736650511,-1101.57,0.00019178,2]
[348707806,1736736650520,-500.0,0.00019178,2]
[348707807,1736736650529,-506.07309183,0.00019178,2]
[348707808,1736736650538,-501.72854081,0.00019178,2]
[348707809,1736736650548,-500.0,0.00019178,2]
[348707810,1736736650557,-500.0,0.00019178,2]
[348707811,1736736650566,-503.3629646,0.00019178,2]
[348707812,1736736650576,-500.0,0.00019178,2]
[348707813,1736736650586,-504.36598731,0.00019178,2]
[348707814,1736736650595,-500.0,0.00019178,2]
[348707815,1736736650604,-500.0,0.00019178,2]
[348707816,1736736650614,-500.0,0.00019178,2]
[348707817,1736736650624,-500.0,0.00019178,2]
[348707818,1736736650633,-500.0,0.00019178,2]
[348707819,1736736650643,-487.96856373,0.00019178,2]
[348707820,1736736650652,-511.27660188,0.00019178,2]
[348707821,1736736650661,-510.75865194,0.00019178,2]
[348707822,1736736650670,-500.0,0.00019178,2]
[348707823,1736736650679,-500.0,0.00019178,2]
[348707824,1736736650689,-500.0,0.00019178,2]
[348707825,1736736650698,-503.77318863,0.00019178,2]
[348707826,1736736650707,-500.0,0.00019178,2]
[348707827,1736736650720,-500.0,0.00019178,2]
[348707828,1736736650730,-505.01920413,0.00019178,2]
[348707829,1736736650740,-504.88571968,0.00019178,2]
[348707830,1736736650750,-500.0,0.00019178,2]
[348707831,1736736650759,-500.0,0.00019178,2]
[348707832,1736736650768,-500.0,0.00019178,2]
[348707833,1736736650778,-500.0,0.00019178,2]
[348707834,1736736650787,-503.58952696,0.00019178,2]
[348707835,1736736650796,-500.0,0.00019178,2]
[348707836,1736736650806,-500.0,0.00019178,2]
[348707837,1736736650816,-500.0,0.00019178,2]
[348707838,1736736650825,-500.0,0.00019178,2]
[348707839,1736736650835,-583.31762324,0.00019178,2]
[348707840,1736736650844,-500.0,0.00019178,2]
[348707841,1736736650855,-1348.43,0.00019178,2]
[348707842,1736736650865,-500.0,0.00019178,2]
[348707843,1736736650874,-500.0,0.00019178,2]
[348707844,1736736650883,-500.0,0.00019178,2]
[348707845,1736736650893,-500.0,0.00019178,2]
[348707846,1736736650903,-500.0,0.00019178,2]
[348707847,1736736650913,-500.0,0.00019178,2]
[348707848,1736736650923,-819.67,0.00019178,2]
[348707849,1736736650933,-500.0,0.00019178,2]
[348707850,1736736650943,-500.0,0.00019178,2]
[348707851,1736736650952,-500.0,0.00019178,2]
[348707852,1736736650962,-505.86490732,0.00019178,2]
[348707853,1736736650975,-500.0,0.00019178,2]
[348707854,1736736650985,-500.0,0.00019178,2]
[348707855,1736736650995,-505.0537969,0.00019178,2]
[348707856,1736736651005,-500.0,0.00019178,2]
[348707857,1736736651015,-1289.29,0.00019178,2]
[348707858,1736736651026,-500.0,0.00019178,2]
[348707859,1736736651036,-502.65537305,0.00019178,2]
[348707860,1736736651046,-500.0,0.00019178,2]
[348707861,1736736651056,-500.0,0.00019178,2]
[348707862,1736736651066,-514.22261566,0.00019178,2]
[348707863,1736736651076,-500.0,0.00019178,2]
[348707864,1736736651086,-500.0,0.00019178,2]
[348707865,1736736651096,-500.0,0.00019178,2]
[348707866,1736736651107,-1133.29,0.00019178,2]
[348707867,1736736651117,-512.15746022,0.00019178,2]
[348707868,1736736651127,-500.0,0.00019178,2]
[348707869,1736736651137,-502.49507056,0.00019178,2]
[348707870,1736736651147,-500.0,0.00019178,2]
[348707871,1736736651156,-1007.36,0.00019178,2]
[348707872,1736736651166,-1007.36,0.00019178,2]
[348707873,1736736651175,-1007.36,0.00019178,2]
[348707874,1736736651262,-1007.36,0.00019178,2]
[348707875,1736736651272,-1007.36,0.00019178,2]
[348707876,1736736651281,-1007.36,0.00019178,2]
[348707877,1736736651291,-318.64605919,0.00019178,2]
[348707878,1736736651300,-1007.36,0.00019178,2]
[348707879,1736736651309,-500.0,0.00019178,2]
[348707880,1736736651318,-1007.36,0.00019178,2]
[348707881,1736736651327,-1007.36,0.00019178,2]
[348707882,1736736651336,-1007.36,0.00019178,2]
[348707883,1736736651345,-1007.36,0.00019178,2]
[348707884,1736736651354,-500.0,0.00019178,2]
[348707885,1736736651363,-1007.36,0.00019178,2]
[348707886,1736736651372,-1007.36,0.00019178,2]
[348707887,1736736651381,-1007.36,0.00019178,2]
[348707888,1736736651390,-1007.36,0.00019178,2]
[348707889,1736736651399,-500.0,0.00019178,2]
[348707890,1736736651409,-1007.36,0.00019178,2]
[348707891,1736736651418,-1007.36,0.00019178,2]
[348707892,1736736651427,-502.6966479,0.00019178,2]
[348707893,1736736651439,-1007.36,0.00019178,2]
[348707894,1736736651448,-500.0,0.00019178,2]
[348707895,1736736651457,-500.0,0.00019178,2]
[348707896,1736736651470,-1007.36,0.00019178,2]
[348707897,1736736651480,-500.0,0.00019178,2]
[348707898,1736736651489,-1007.36,0.00019178,2]
[348707899,1736736651499,-1007.36,0.00019178,2]
[348707900,1736736651508,-500.0,0.00019178,2]
[348707901,1736736651518,-1007.36,0.00019178,2]
[348707902,1736736651528,-1007.36,0.00019178,2]
[348707903,1736736651538,-500.0,0.00019178,2]
[348707904,1736736651547,-500.0,0.00019178,2]
[348707905,1736736651556,-500.0,0.00019178,2]
[348707906,1736736651565,-610.70947035,0.00019178,2]
[348707907,1736736651574,-1007.41338941,0.00019178,2]
[348707908,1736736651583,-500.0,0.00019178,2]
[348707909,1736736651592,-500.0,0.00019178,2]
[348707910,1736736651602,-500.0,0.00019178,2]
[348707911,1736736651611,-500.0,0.00019178,2]
[348707912,1736736651620,-338.6687192,0.00019178,2]
[348707913,1736736651629,-500.0,0.00019178,2]
[348707914,1736736651638,-500.0,0.00019178,2]
[348707915,1736736651647,-534.2191561,0.00019178,2]
[348707916,1736736651656,-505.17581778,0.00019178,2]
[348707917,1736736651666,-503.02674926,0.00019178,2]
[348707918,1736736651675,-169.288883,0.00019178,2]
[348707919,1736736651684,-154.47,0.00019178,2]
[348707920,1736736651694,-167.205495,0.00019178,2]
[348707921,1736736651703,-6542.13599906,0.00019259,2]
[348707922,1736736651713,-620.0,0.000193,2]
[348707923,1736736651723,-160.55253113,0.00019451,2]
[348707924,1736736651733,-500.0,0.00019452,3]
[348707925,1736736651742,-500.0,0.00019452,3]
[348707926,1736736651752,-500.0,0.00019452,3]
[348707927,1736736651761,-500.0,0.00019452,3]
[348707928,1736736651771,-456.02982994,0.00019452,3]
[348707929,1736736651781,-511.86402865,0.00019452,3]
[348707930,1736736651790,-303.9768234,0.00019452,3]
[348707931,1736736651799,-510.57040148,0.00019452,3]
[348707932,1736736651809,-503.26103501,0.00019452,3]
[348707933,1736736651818,-502.82925248,0.00019452,3]
[348707934,1736736651828,-500.0,0.00019452,3]
[348707935,1736736651837,-504.10682061,0.00019452,3]
[348707936,1736736651846,-500.0,0.00019452,3]
[348707937,1736736651855,-500.0,0.00019452,3]
[348707938,1736736651864,-504.59095539,0.00019452,3]
[348707939,1736736651874,-512.84648393,0.00019452,3]
[348707940,1736736651883,-500.0,0.00019452,3]
[348707941,1736736651892,-500.0,0.00019452,3]
[348707942,1736736651901,-486.2907086,0.00019452,3]
[348707943,1736736651911,-500.0,0.00019452,3]
[348707944,1736736651921,-577.502032,0.00019452,3]
[348707945,1736736651931,-500.0,0.00019452,3]
[348707946,1736736651940,-500.0,0.00019452,3]
[348707947,1736736651949,-20.58745966,0.00019452,3]
[348707948,1736736652237,299.726481,0.00013973,2]
[348707949,1736736652327,-479.41254034,0.00019452,3]
[348707950,1736736652337,-362.28922265,0.00019452,3]
[348707951,1736736652347,-501.30757535,0.00019452,3]
[348707952,1736736652356,-500.0,0.00019452,3]
[348707953,1736736652365,-501.84959379,0.00019452,3]
[348707954,1736736652374,-500.0,0.00019452,3]
[348707955,1736736652383,-500.0,0.00019452,3]
[348707956,1736736652392,-500.0,0.00019452,3]
[348707957,1736736652402,-500.0,0.00019452,3]
[348707958,1736736652411,-500.0,0.00019452,3]
[348707959,1736736652420,-500.0,0.00019452,3]
[348707960,1736736652433,-500.0,0.00019452,3]
[348707961,1736736652442,-502.03416727,0.00019452,3]
[348707962,1736736652452,-501.06964224,0.00019452,3]
[348707963,1736736652461,-503.8020374,0.00019452,3]
[348707964,1736736652475,-504.71330605,0.00019452,3]
[348707965,1736736652485,-500.0,0.00019452,3]
[348707966,1736736652493,-492.13757892,0.00019452,3]
[348707967,1736736652502,-324.05633575,0.00019452,3]
[348707968,1736736652511,-500.0,0.00019452,3]
[348707969,1736736652522,-501.82423842,0.00019452,3]
[348707970,1736736652531,-500.0,0.00019452,3]
[348707971,1736736652541,-510.24562768,0.00019452,3]
[348707972,1736736652550,-504.02343078,0.00019452,3]
[348707973,1736736652559,-500.0,0.00019452,3]
[348707974,1736736652569,-500.0,0.00019452,3]
[348707975,1736736652578,-500.0,0.00019452,3]
[348707976,1736736652587,-414.55237561,0.00019452,3]
[348707977,1736736652597,-500.0,0.00019452,3]
[348707978,1736736652606,-500.0,0.00019452,3]
[348707979,1736736652615,-500.0,0.00019452,3]
[348707980,1736736652626,-502.62379227,0.00019452,3]
[348707981,1736736652635,-500.0,0.00019452,3]
[348707982,1736736652645,-500.0,0.00019452,3]
[348707983,1736736652655,-500.0,0.00019452,3]
[348707984,1736736652664,-500.0,0.00019452,3]
[348707985,1736736652674,-500.0,0.00019452,3]
[348707986,1736736652683,-500.0,0.00019452,3]
[348707987,1736736652692,-500.0,0.00019452,3]
[348707988,1736736652702,-500.0,0.00019452,3]
[348707989,1736736652711,-500.0,0.00019452,3]
[348707990,1736736652724,-500.0,0.00019452,3]
[348707991,1736736652733,-490.62335464,0.00019452,3]
[348707992,1736736652742,-502.90473508,0.00019452,3]
[348707993,1736736652751,-504.06450894,0.00019452,3]
[348707994,1736736652760,-500.0,0.00019452,3]
[348707995,1736736652847,-500.0,0.00019452,3]
[348707996,1736736652857,-515.18401922,0.00019452,3]
[348707997,1736736652866,-514.90529183,0.00019452,3]
[348707998,1736736652876,-514.96049043,0.00019452,3]
[348707999,1736736652885,-500.0,0.00019452,3]
[348708000,1736736652894,-500.0,0.00019452,3]
[348708001,1736736652903,-509.22294696,0.00019452,3]
[348708002,1736736652912,-508.34623923,0.00019452,3]
[348708003,1736736652922,-500.0,0.00019452,3]
[348708004,1736736652931,-573.8,0.00019452,3]
[348708005,1736736652941,-500.0,0.00019452,3]
[348708006,1736736652950,-500.0,0.00019452,3]
[348708007,1736736652959,-500.0,0.00019452,3]
[348708008,1736736652970,-426.2670767,0.00019452,3]
[348708009,1736736652980,-500.0,0.00019452,3]
[348708010,1736736652989,-500.0,0.00019452,3]
[348708011,1736736652999,-3851.56,0.00019452,3]
[348708012,1736736653008,-500.0,0.00019452,3]
[348708013,1736736653018,-511.19185488,0.00019452,3]
[348708014,1736736653028,-500.0,0.00019452,3]
[348708015,1736736653037,-509.57662271,0.00019452,3]
[348708016,1736736653047,-500.0,0.00019452,3]
[348708017,1736736653056,-500.0,0.00019452,3]
[348708018,1736736653065,-500.0,0.00019452,3]
[348708019,1736736653075,-3310.35139286,0.00019452,3]
[348708020,1736736660358,10032.1274,0.00025,120]
[348708026,1736737034755,171.64,0.00025,120]
[348708052,1736737743640,284.740158,0.00013973,2]
[348708107,1736737832819,-632.393,0.0001848,2]
[348708109,1736737832830,-1162.35047307,0.0001897,2]
[348708653,1736737838316,-1364.57616101,0.0001897,2]
[348708655,1736737838325,-151.0,0.00019078,2]
[348708657,1736737838334,-151.0,0.00019078,2]
[348708659,1736737838344,-3000.0,0.00019078,2]
[348708672,1736737838451,-151.0,0.00019099,2]
[348708674,1736737838461,-400.02246428,0.00019173,2]
[348708676,1736737838470,-500.0,0.00019173,2]
[348708678,1736737838480,-160.80411895,0.00019173,2]
[348708680,1736737838489,-343.10747722,0.00019173,2]
[348708681,1736737838533,-156.89252278,0.00019173,2]
[348708682,1736737838543,-500.0,0.00019173,2]
[348708683,1736737838552,-505.59383284,0.00019173,2]
[348708684,1736737838561,-500.0,0.00019177,2]
[348708685,1736737838571,-345.68491424,0.00019177,2]
[348708686,1736737838580,-189.31747713,0.00019177,2]
[348708687,1736737838589,-294.98767848,0.00019177,2]
[348708688,1736737838598,-500.0,0.00019177,2]
[348708689,1736737838607,-500.0,0.00019177,2]
[348708690,1736737838616,-500.0,0.00019177,2]
[348708691,1736737838625,-500.0,0.00019177,2]
[348708692,1736737838635,-500.0,0.00019177,2]
[348708693,1736737838644,-500.0,0.00019177,2]
[348708694,1736737838653,-500.0,0.00019177,2]
[348708695,1736737838663,-500.0,0.00019177,2]
[348708696,1736737838672,-500.0,0.00019177,2]
[348708697,1736737838682,-401.74804554,0.00019177,2]
[348708698,1736737838691,-500.0,0.00019177,2]
[348708699,1736737838701,-372.92253019,0.00019177,2]
[348708700,1736737838710,-500.0,0.00019177,2]
[348708701,1736737838719,-500.0,0.00019177,2]
[348708702,1736737838728,-500.0,0.00019177,2]
[348708703,1736737838737,-500.0,0.00019177,2]
[348708704,1736737838746,-500.0,0.00019177,2]
[348708705,1736737838756,-500.0,0.00019177,2]
[348708707,1736737838765,-500.0,0.00019177,2]
[348708708,1736737838774,-500.0,0.00019177,2]
[348708710,1736737838785,-500.0,0.00019177,2]
[348708712,1736737838794,-500.0,0.00019177,2]
[348708714,1736737838803,-500.0,0.00019177,2]
[348708716,1736737838812,-500.0,0.00019177,2]
[348708718,1736737838822,-500.0,0.00019177,2]
[348708719,1736737838832,-500.0,0.00019177,2]
[348708721,1736737838844,-500.0,0.00019177,2]
[348708723,1736737838853,-500.0,0.00019177,2]
[348708725,1736737838862,-500.0,0.00019177,2]
[348708727,1736737838872,-500.0,0.00019177,2]
[348708728,1736737838882,-500.0,0.00019177,2]